bitfinex/quotes_SOLUSD_20241113
["timestamp","ask_amount","ask_price","bid_price","bid_amount"]
[1731516282315,1.16706125,214.31,214.12,23.776884]
[1731516282515,32.131,214.34,214.17,20.0]
[1731516282516,1.16675207,214.3,214.17,20.0]
[1731516282715,1.16675207,214.3,214.07,5.72635034]
[1731516282894,1.16705186,214.33,214.12,0.1]
[1731516283099,32.131,214.34,214.15,0.1]
[1731516283312,32.131,214.34,214.16,4.99886369]
[1731516283515,32.6222,214.42,214.17,0.1]
[1731516283716,1.16624983,214.41,214.18,5.09886369]
[1731516283904,1.16624983,214.41,214.2,20.0]
[1731516284103,1.16624983,214.41,214.22,20.0]
[1731516284419,1.16624983,214.41,214.27,23.776884]
[1731516284602,1.16624983,214.41,214.29,23.776884]
[1731516285915,1.27286273,214.41,214.29,23.776884]
[1731516287618,1.27286273,214.41,214.3,20.12549]
[1731516287929,1.27286273,214.41,214.33,23.776884]
[1731516288131,1.27286273,214.41,214.32,20.0]
[1731516288300,1.27286273,214.41,214.33,23.776884]
[1731516288836,1.27286273,214.41,214.34,20.0]
[1731516289131,0.1066129,214.41,214.35,23.776884]
[1731516289306,0.1066129,214.41,214.21,0.1]
[1731516289307,0.1066129,214.41,214.37,23.776884]
[1731516290321,1.16589073,214.48,214.44,162.2933871]
[1731516290622,30.7905,214.49,214.43,23.776884]
[1731516291128,31.95625761,214.57,214.43,23.776884]
[1731516291654,0.12549,214.56,214.43,23.776884]
[1731516291812,1.1658042,214.55,214.43,23.776884]
[1731516292016,0.12549,214.54,214.29,31.2939]
[1731516292216,0.12549,214.52,214.33,20.0]
[1731516292429,1.16594461,214.51,214.33,20.0]
[1731516292733,1.16594461,214.51,214.34,0.12549]
[1731516293133,0.12549,214.5,214.29,5.81703635]
[1731516293312,1.16594461,214.51,214.27,12.3182]
[1731516293313,37.5816105,214.48,214.27,12.3182]
[1731516293519,1.1662037,214.47,214.28,0.12549]
[1731516293934,0.12549,214.46,214.21,32.77]
[1731516294126,1.16631582,214.45,214.22,0.12549]
[1731516294635,1.16631582,214.45,214.21,32.77]
[1731516294636,0.12549,214.44,214.21,32.77]
[1731516294821,1.16638714,214.43,214.21,38.56094445]
[1731516295138,1.16638714,214.43,214.22,0.12549]
[1731516295321,1.16631683,214.47,214.22,0.12549]
[1731516295819,1.16631683,214.47,214.22,23.902374]
[1731516296214,1.16631683,214.47,214.24,0.12549]
[1731516296432,1.16621567,214.46,214.29,20.0]
[1731516296620,1.16589127,214.53,214.32,23.776884]
[1731516296815,1.16589127,214.53,214.34,23.902374]
[1731516297029,1.16589127,214.53,214.37,20.0]
[1731516297338,1.16589127,214.53,214.4,23.776884]
[1731516297538,1.16559843,214.56,214.42,23.776884]
[1731516297839,1.16559843,214.56,214.45,20.0]
[1731516298333,1.16559843,214.56,214.31,4.99886369]
[1731516298334,1.16559843,214.56,214.34,23.776884]
[1731516298537,1.16559843,214.56,214.36,23.776884]
[1731516298730,1.16559843,214.56,214.35,20.12549]
[1731516298731,1.16559843,214.56,214.39,20.0]
[1731516299040,1.16559843,214.56,214.44,23.776884]
[1731516299240,1.16559843,214.56,214.46,23.776884]
[1731516300540,1.16559843,214.56,214.46,20.0]
[1731516300720,1.16559843,214.56,214.31,4.99886369]
[1731516300921,1.16559843,214.56,214.36,43.776884]
[1731516301246,1.16559843,214.56,214.35,18.34237469]
[1731516301427,1.16559843,214.56,214.25,4.12163984]
[1731516301428,0.12549,214.51,214.26,12.8144]
[1731516301620,37.22680067,214.5,214.26,12.8144]
[1731516301819,1.16615069,214.49,214.26,12.8144]
[1731516302039,0.12549,214.48,214.27,0.12549]
[1731516302233,1.16612544,214.47,214.27,0.12549]
[1731516302425,5.82706716,214.54,214.27,0.12549]
[1731516302625,0.12549,214.53,214.27,0.12549]
[1731516302824,1.1659048,214.52,214.29,24.002374]
[1731516303034,1.16564667,214.56,214.31,23.776884]
[1731516303256,1.16564667,214.56,214.32,5.09886369]
[1731516303432,1.16564667,214.56,214.34,0.12549]
[1731516303739,1.16564667,214.56,214.37,23.776884]
[1731516303939,1.16564667,214.56,214.38,20.12549]
[1731516304140,1.16564667,214.56,214.41,23.776884]
[1731516304328,1.16564667,214.56,214.43,23.776884]
[1731516304640,1.16564667,214.56,214.44,20.12549]
[1731516304842,1.16564667,214.56,214.47,23.776884]
[1731516305146,1.16564667,214.56,214.49,23.776884]
[1731516305317,1.16564667,214.56,214.5,0.12549]
[1731516305522,0.4492579,214.58,214.51,23.776884]
[1731516306225,0.4492579,214.58,214.41,13.0895]
[1731516306427,0.4492579,214.58,214.42,43.776884]
[1731516306620,1.16531707,214.57,214.43,0.12549]
[1731516307635,0.4492579,214.58,214.43,0.12549]
[1731516309346,1.1652655,214.57,214.43,0.12549]
[1731516310018,1.1652655,214.57,214.42,20.0]
[1731516310219,1.1652655,214.57,214.38,5.87302699]
[1731516310521,1.1652655,214.57,214.37,0.12549]
[1731516310720,1.16540592,214.56,214.37,5.12435369]
[1731516311046,0.4492579,214.58,214.39,0.12549]
[1731516311231,0.4492579,214.58,214.39,5.12435369]
[1731516311546,0.4492579,214.58,214.4,4.99886369]
[1731516311844,0.4492579,214.58,214.42,23.776884]
[1731516312144,0.4492579,214.58,214.48,23.902374]
[1731516312348,0.4492579,214.58,214.49,20.0]
[1731516312546,0.4492579,214.58,214.51,20.0]
[1731516312724,0.4492579,214.58,214.53,20.12549]
[1731516313040,0.4492579,214.58,214.56,23.776884]
[1731516313541,0.4492579,214.58,214.57,43.902374]
[1731516313748,32.5099,214.64,214.63,161.9507421]
[1731516314046,1.16499216,214.71,214.6,23.902374]
[1731516314224,1.16499216,214.71,214.61,20.0]
[1731516314423,1.16499216,214.71,214.64,23.776884]
[1731516315434,1.1645726,214.72,214.64,23.776884]
[1731516316126,1.61383699,214.79,214.66,23.776884]
[1731516316323,1.61383699,214.79,214.68,23.776884]
[1731516316835,1.61383699,214.79,214.7,23.776884]
[1731516317626,1.61383699,214.79,214.69,20.0]
[1731516317841,1.61383699,214.79,214.65,43.902374]
[1731516319544,0.4492579,214.79,214.65,57.180774]
[1731516321338,1.16419144,214.85,214.82,161.9507421]
[1731516321639,1.16376957,214.84,214.65,57.180774]
[1731516321831,1.16386042,214.87,214.65,57.180774]
[1731516322231,1.16386042,214.87,214.65,57.280774]
[1731516322639,1.16386042,214.87,214.67,43.902374]
[1731516322952,5.81643727,214.93,214.67,43.902374]
[1731516323131,0.12549,214.92,214.67,43.902374]
[1731516323328,1.16379913,214.91,214.67,43.902374]
[1731516323533,31.1714,214.95,214.67,43.902374]
[1731516323534,1.16364466,214.94,214.67,44.002374]
[1731516323934,1.16364466,214.94,214.68,0.1]
[1731516324130,1.16364466,214.94,214.73,44.002374]
[1731516324454,6.26354121,215.01,214.73,43.902374]
[1731516324664,0.12549,215.0,214.75,43.902374]
[1731516324947,0.12549,214.98,214.75,43.902374]
[1731516325130,1.16348172,214.97,214.75,43.902374]
[1731516325634,0.12549,214.96,214.75,43.902374]
[1731516325831,1.16342556,214.95,214.75,43.902374]
[1731516326039,1.1634052,214.99,214.75,43.902374]
[1731516326251,1.1634052,214.99,214.75,44.002374]
[1731516326443,1.1634052,214.99,214.75,43.902374]
[1731516326750,1.1634052,214.99,214.75,44.002374]
[1731516326952,1.1634052,214.99,214.75,43.902374]
[1731516327939,23.902374,214.98,214.75,25.78001158]
[1731516328248,1.16346641,214.97,214.76,0.12549]
[1731516328451,1.16321775,215.0,214.76,0.12549]
[1731516329136,0.12549,214.99,214.76,23.902374]
[1731516329452,1.16325316,214.98,214.79,20.12549]
[1731516329632,1.16325316,214.98,214.81,20.0]
[1731516329833,1.16325316,214.98,214.83,20.0]
[1731516330148,1.16325316,214.98,214.86,23.776884]
[1731516330351,1.16324175,214.97,214.86,23.776884]
[1731516330651,1.16322266,215.0,214.86,23.776884]
[1731516330951,1.16322266,215.0,214.87,20.0]
[1731516331156,1.16322266,215.0,214.88,23.776884]
[1731516331659,1.16322266,215.0,214.77,5.64418474]
[1731516331660,0.12549,214.99,214.77,5.64418474]
[1731516331854,0.12549,214.99,214.67,12.3356]
[1731516331855,0.12549,214.93,214.67,12.3356]
[1731516332033,0.12549,214.88,214.67,12.3356]
[1731516332232,0.1,214.91,214.66,5.71658779]
[1731516332233,0.12549,214.86,214.66,5.71658779]
[1731516332432,1.16415241,214.85,214.63,18.610021]
[1731516333060,1.16415241,214.85,214.61,18.16604847]
[1731516333354,1.16381558,214.84,214.61,23.16491216]
[1731516333534,1.16381558,214.84,214.61,18.16604847]
[1731516333936,33.2338,214.83,214.61,18.16604847]
[1731516334141,1.16409632,214.82,214.61,36.77669947]
[1731516334552,1.16409632,214.82,214.62,0.12549]
[1731516335336,33.2338,214.83,214.62,0.12549]
[1731516335337,33.2338,214.83,214.63,0.1]
[1731516335545,33.2338,214.83,214.64,20.0]
[1731516335738,1.16385342,214.82,214.68,20.0]
[1731516335943,0.12549,214.81,214.61,18.16604847]
[1731516336158,33.2338,214.83,214.61,18.16604847]
[1731516336159,1.16441629,214.8,214.61,18.16604847]
[1731516336459,1.16418421,214.82,214.61,18.16604847]
[1731516336693,33.2338,214.83,214.62,0.12549]
[1731516336844,33.2338,214.83,214.62,5.12435369]
[1731516337162,1.16384299,214.82,214.62,20.0]
[1731516337362,1.16384299,214.82,214.61,18.16604847]
[1731516337363,0.12549,214.81,214.61,18.16604847]
[1731516337538,1.16435489,214.8,214.61,18.16604847]
[1731516338357,1.16435489,214.8,214.62,0.12549]
[1731516338568,1.16435387,214.79,214.62,0.12549]
[1731516338858,1.16435387,214.79,214.62,43.902374]
[1731516339445,1.16430742,214.78,214.62,43.902374]
[1731516340558,1.16431024,214.81,214.62,43.902374]
[1731516340765,1.16406055,214.82,214.62,44.002374]
[1731516340964,33.2338,214.83,214.64,0.1]
[1731516341968,32.7884,214.92,214.66,0.1]
[1731516342151,1.16361198,214.91,214.69,20.1]
[1731516342347,1.16361198,214.91,214.73,20.0]
[1731516342664,0.12549,214.9,214.77,20.0]
[1731516342853,0.12549,214.88,214.66,232.40022792]
[1731516343049,32.7884,214.92,214.61,18.16604847]
[1731516343050,0.12549,214.86,214.62,43.776884]
[1731516343264,1.16400331,214.85,214.63,0.12549]
[1731516343666,0.12549,214.84,214.61,18.16604847]
[1731516343972,0.12549,214.82,214.61,18.16604847]
[1731516344143,0.12549,214.82,214.56,243.68671043]
[1731516344144,46.85318504,214.8,214.57,1.861464]
[1731516344349,0.12549,214.75,214.56,6.63148251]
[1731516344670,1.29027958,214.75,214.56,6.63148251]
[1731516344878,1.29027958,214.75,214.57,0.12549]
[1731516345179,1.29027958,214.75,214.56,6.63148251]
[1731516345546,1.16478958,214.75,214.57,20.0]
[1731516345748,1.16461172,214.74,214.57,20.0]
[1731516346570,1.16461172,214.74,214.58,0.12549]
[1731516346750,1.16459274,214.73,214.58,0.12549]
[1731516346956,1.16459274,214.73,214.59,20.0]
[1731516347154,1.16459274,214.73,214.61,20.0]
[1731516347357,1.16442891,214.8,214.63,20.0]
[1731516347574,1.16442891,214.8,214.65,20.0]
[1731516347757,1.16442891,214.8,214.68,23.776884]
[1731516347952,1.16442891,214.8,214.72,23.776884]
[1731516348149,1.16442891,214.8,214.73,20.0]
[1731516349658,1.16442891,214.8,214.66,20.12549]
[1731516349866,0.12549,214.79,214.56,6.63148251]
[1731516350062,1.16451012,214.78,214.57,23.776884]
[1731516350268,1.16451012,214.78,214.58,0.12549]
[1731516351370,1.16451012,214.78,214.58,20.0]
[1731516351566,1.16451012,214.78,214.61,0.12549]
[1731516351772,0.12549,214.77,214.61,23.776884]
[1731516352060,1.16470911,214.76,214.61,23.776884]
[1731516353776,1.16470117,214.74,214.57,0.12549]
[1731516353953,46.75318504,214.79,214.57,0.12549]
[1731516354159,0.12549,214.75,214.56,12.37265195]
[1731516354470,0.12549,214.75,214.57,0.12549]
[1731516354471,1.16480967,214.74,214.57,0.12549]
[1731516354670,23.902374,214.73,214.49,12.1684]
[1731516354967,46.75318504,214.71,214.49,12.1684]
[1731516355177,0.12549,214.69,214.49,12.1684]
[1731516355371,1.16512017,214.68,214.49,12.1684]
[1731516355757,1.16512017,214.68,214.5,0.12549]
[1731516356171,1.16469634,214.71,214.5,0.12549]
[1731516356377,1.16469634,214.71,214.5,20.12549]
[1731516356688,1.16469634,214.71,214.52,20.12549]
[1731516356877,1.16469634,214.71,214.53,23.776884]
[1731516357056,1.16469634,214.71,214.58,20.0]
[1731516358582,0.12549,214.7,214.51,23.776884]
[1731516358881,0.12549,214.7,214.49,12.1684]
[1731516358882,1.16494469,214.69,214.56,20.0]
[1731516359783,1.1649056,214.71,214.6,20.0]
[1731516359989,1.1649056,214.71,214.62,20.0]
[1731516360482,1.1649056,214.71,214.52,20.0]
[1731516360666,1.1649056,214.71,214.5,20.12549]
[1731516360667,1.1649056,214.71,214.55,23.776884]
[1731516360867,1.1649056,214.71,214.58,20.0]
[1731516361063,1.1649056,214.71,214.62,20.0]
[1731516361469,1.1649056,214.71,214.5,23.776884]
[1731516361783,1.1649056,214.71,214.54,23.776884]
[1731516361982,0.12549,214.7,214.54,23.776884]
[1731516362280,1.16507924,214.69,214.55,0.12549]
[1731516363169,1.16474137,214.68,214.55,0.12549]
[1731516363363,1.16472891,214.71,214.57,20.12549]
[1731516363565,31.0983,214.72,214.59,20.0]
[1731516363784,0.8889686,214.71,214.63,20.0]
[1731516364090,31.7946,214.8,214.69,20.0]
[1731516364270,0.8889686,214.79,214.69,20.0]
[1731516365171,0.8889686,214.79,214.55,0.1]
[1731516365172,0.12549,214.78,214.52,20.0]
[1731516365381,0.12549,214.76,214.52,20.0]
[1731516365600,0.8889686,214.75,214.56,20.0]
[1731516365881,0.8889686,214.79,214.63,23.776884]
[1731516366093,0.12549,214.78,214.64,20.0]
[1731516366264,0.12549,214.78,214.49,30.788793]
[1731516366265,0.12549,214.76,214.49,30.788793]
[1731516366470,0.12549,214.74,214.49,30.788793]
[1731516366713,0.12549,214.72,214.49,30.788793]
[1731516366864,0.8889686,214.71,214.49,12.1684]
[1731516367065,0.12549,214.68,214.49,17.94559073]
[1731516367272,0.8889686,214.67,214.49,5.77719073]
[1731516367471,0.8889686,214.67,214.44,31.6666]
[1731516367670,23.776884,214.66,214.42,12.1209]
[1731516367890,0.12549,214.64,214.42,12.1209]
[1731516368192,0.12549,214.62,214.42,17.98454364]
[1731516368369,0.12549,214.59,214.42,5.86364364]
[1731516368569,0.8889686,214.58,214.37,0.12549]
[1731516369485,0.8889686,214.59,214.37,0.12549]
[1731516369789,0.8889686,214.59,214.37,24.002374]
[1731516370185,0.8889686,214.67,214.44,0.1]
[1731516370780,0.8889686,214.67,214.47,0.1]
[1731516371092,33.2649,214.78,214.53,23.776884]
[1731516371266,0.8889686,214.77,214.56,20.0]
[1731516371472,0.8889686,214.77,214.58,20.0]
[1731516371666,37.27191139,214.76,214.6,20.0]
[1731516371876,0.22549,214.73,214.5,43.776884]
[1731516372174,0.12549,214.71,214.51,0.12549]
[1731516372375,0.8889686,214.7,214.51,0.12549]
[1731516372585,0.12549,214.73,214.51,0.12549]
[1731516372789,0.12549,214.71,214.51,0.12549]
[1731516372970,23.902374,214.71,214.51,0.12549]
[1731516373576,0.12549,214.69,214.51,0.12549]
[1731516373796,23.902374,214.69,214.51,0.12549]
[1731516374397,23.902374,214.69,214.5,23.776884]
[1731516374769,23.902374,214.69,214.51,0.12549]
[1731516375175,28.560174,214.69,214.5,23.776884]
[1731516375380,23.902374,214.69,214.5,23.776884]
[1731516375582,23.902374,214.69,214.51,0.12549]
[1731516376186,0.12549,214.69,214.51,0.12549]
[1731516376380,0.12549,214.69,214.54,23.776884]
[1731516376590,0.12549,214.69,214.55,20.0]
[1731516377490,32.1149,214.7,214.47,23.876884]
[1731516377789,32.1149,214.7,214.52,20.0]
[1731516377993,32.1149,214.7,214.56,20.0]
[1731516378199,0.12549,214.69,214.56,20.0]
[1731516378397,32.1149,214.7,214.56,20.0]
[1731516378702,32.1149,214.7,214.48,43.776884]
[1731516379194,32.1149,214.7,214.49,0.12549]
[1731516380081,30.4132,214.81,214.53,23.902374]
[1731516380476,0.12549,214.8,214.53,23.902374]
[1731516380980,4.78099,214.8,214.53,23.902374]
[1731516381181,0.22549,214.75,214.52,12.898]
[1731516381381,23.902374,214.73,214.52,12.898]
[1731516381586,0.12549,214.73,214.53,0.12549]
[1731516382095,23.776884,214.75,214.53,0.12549]
[1731516382293,0.12549,214.74,214.53,0.12549]
[1731516382495,0.12549,214.74,214.53,23.902374]
[1731516382791,0.12549,214.74,214.52,12.898]
[1731516382792,4.88229,214.74,214.52,12.898]
[1731516382990,0.12549,214.72,214.52,12.898]
[1731516383502,23.876884,214.73,214.52,12.898]
[1731516383503,0.12549,214.7,214.52,12.898]
[1731516384598,23.776884,214.72,214.53,20.0]
[1731516384805,0.12549,214.71,214.53,20.0]
[1731516385978,0.12549,214.71,214.43,31.2701]
[1731516385979,0.12549,214.67,214.46,12.2215]
[1731516386278,0.12549,214.65,214.46,12.2215]
[1731516386683,23.902374,214.65,214.46,12.2215]
[1731516387103,0.1,214.66,214.46,12.2215]
[1731516387793,0.1,214.66,214.47,20.0]
[1731516387993,0.12549,214.67,214.48,0.12549]
[1731516388188,31.0476,214.7,214.52,23.776884]
[1731516388379,31.0476,214.7,214.55,20.0]
[1731516388578,31.0476,214.7,214.57,20.0]
[1731516389179,0.12549,214.69,214.5,0.12549]
[1731516389403,0.12549,214.69,214.49,43.776884]
[1731516389600,0.12549,214.65,214.36,0.80646508]
[1731516389811,0.12549,214.63,214.4,13.2201]
[1731516389980,24.002374,214.65,214.4,13.2201]
[1731516390304,23.902374,214.63,214.4,13.2201]
[1731516390498,0.12549,214.59,214.4,13.2201]
[1731516390796,23.902374,214.59,214.4,13.2201]
[1731516391206,0.1,214.65,214.41,0.12549]
[1731516391382,0.12549,214.64,214.41,0.12549]
[1731516391909,23.902374,214.61,214.41,23.776884]
[1731516392091,23.902374,214.59,214.37,33.0537]
[1731516392409,23.776884,214.53,214.34,12.8302]
[1731516393094,0.12549,214.59,214.35,0.12549]
[1731516393297,33.2826,214.6,214.35,0.12549]
[1731516393497,33.2826,214.6,214.35,23.902374]
[1731516393797,33.2826,214.6,214.34,12.9302]
[1731516393798,33.2826,214.6,214.38,20.0]
[1731516393997,0.12549,214.59,214.41,23.776884]
[1731516394201,0.12549,214.59,214.4,20.0]
[1731516394723,0.22549,214.54,214.34,12.8302]
[1731516395008,0.12549,214.54,214.34,12.8302]
[1731516395185,0.12549,214.52,214.33,6.63849675]
[1731516395506,23.902374,214.52,214.33,6.63849675]
[1731516396207,0.12549,214.53,214.33,6.63849675]
[1731516396398,33.2826,214.6,214.34,0.12549]
[1731516396904,33.2826,214.6,214.34,23.902374]
[1731516397120,33.2826,214.6,214.38,23.776884]
[1731516397315,33.2826,214.6,214.43,20.0]
[1731516397610,33.2826,214.6,214.44,23.776884]
[1731516397798,33.2826,214.6,214.45,20.0]
[1731516398187,0.12549,214.59,214.45,20.0]
[1731516398387,33.2826,214.6,214.47,20.0]
[1731516398583,0.12549,214.59,214.4,5.73908848]
[1731516398788,0.12549,214.56,214.34,23.776884]
[1731516399002,23.902374,214.56,214.35,0.12549]
[1731516399208,23.902374,214.56,214.34,5.93124029]
[1731516399510,23.776884,214.58,214.29,32.8649]
[1731516399697,0.12549,214.57,214.34,0.12549]
[1731516400203,23.776884,214.59,214.34,0.12549]
[1731516400393,0.12549,214.58,214.34,23.902374]
[1731516400589,0.12549,214.58,214.35,20.0]
[1731516400791,0.12549,214.58,214.38,23.776884]
[1731516401102,33.2826,214.6,214.45,20.0]
[1731516401408,33.2826,214.6,214.49,20.0]
[1731516401791,33.2826,214.6,214.33,12.55038302]
[1731516401792,0.12549,214.59,214.35,23.776884]
[1731516401989,0.12549,214.59,214.36,20.0]
[1731516402205,0.12549,214.59,214.35,23.776884]
[1731516402396,0.1,214.58,214.35,23.776884]
[1731516402599,0.12549,214.56,214.35,23.776884]
[1731516402785,0.12549,214.56,214.36,0.12549]
[1731516402985,23.776884,214.58,214.36,0.12549]
[1731516403199,0.12549,214.57,214.37,23.776884]
[1731516403407,0.12549,214.57,214.36,0.12549]
[1731516403590,37.14642139,214.57,214.34,12.6645]
[1731516403786,23.902374,214.56,214.34,12.6645]
[1731516404007,23.902374,214.54,214.33,12.37633999]
[1731516404230,31.8726,214.53,214.33,6.63849675]
[1731516404400,23.902374,214.52,214.33,6.63849675]
[1731516405492,23.902374,214.52,214.34,20.0]
[1731516405907,23.902374,214.49,214.33,6.63849675]
[1731516406793,32.0438,214.44,214.33,6.63849675]
[1731516407121,23.902374,214.41,214.33,6.63849675]
[1731516407496,0.12549,214.41,214.33,6.63849675]
[1731516408118,0.12549,214.42,214.33,6.63849675]
[1731516408821,32.0438,214.44,214.34,20.0]
[1731516409706,33.2208,214.5,214.36,20.0]
[1731516410010,0.12549,214.49,214.36,20.0]
[1731516410391,33.2208,214.5,214.36,20.0]
[1731516410593,33.2208,214.5,214.39,23.776884]
[1731516410794,31.1226,214.61,214.42,20.0]
[1731516411013,37.2540221,214.56,214.42,20.0]
[1731516411207,37.2540221,214.6,214.42,20.0]
[1731516411510,0.12549,214.59,214.38,23.776884]
[1731516411809,0.12549,214.59,214.39,20.0]
[1731516412013,23.776884,214.6,214.41,20.0]
[1731516412220,31.1226,214.61,214.43,20.0]
[1731516412514,31.1226,214.61,214.47,20.0]
[1731516412891,0.12549,214.6,214.47,20.0]
[1731516413092,0.12549,214.6,214.43,20.0]
[1731516413306,0.12549,214.6,214.45,20.0]
[1731516413501,0.12549,214.6,214.43,20.0]
[1731516413719,23.902374,214.55,214.33,38.61359675]
[1731516413900,23.902374,214.53,214.33,38.61359675]
[1731516414518,23.902374,214.55,214.33,44.28739395]
[1731516414816,31.1226,214.61,214.37,0.12549]
[1731516415021,31.1226,214.61,214.37,0.22549]
[1731516415227,31.1226,214.61,214.38,0.1]
[1731516415517,31.1226,214.61,214.42,20.0]
[1731516415818,31.1226,214.61,214.39,23.902374]
[1731516415819,0.12549,214.6,214.47,23.776884]
[1731516416018,0.12549,214.6,214.48,20.0]
[1731516416917,31.1226,214.61,214.5,20.0]
[1731516417102,51.1916,214.69,214.51,36.202474]
[1731516417416,0.80272721,214.81,214.51,36.202474]
[1731516417417,31.1916,214.77,214.58,20.0]
[1731516417631,31.1916,214.77,214.6,20.0]
[1731516417994,4.7563,214.76,214.52,23.776884]
[1731516418211,0.12549,214.72,214.53,20.0]
[1731516418524,0.12549,214.7,214.53,20.0]
[1731516418825,0.12549,214.7,214.51,12.3001]
[1731516418997,0.12549,214.68,214.51,12.3001]
[1731516419194,23.902374,214.68,214.51,12.3001]
[1731516419612,23.776884,214.72,214.51,12.3001]
[1731516419818,37.3795121,214.71,214.51,12.3001]
[1731516420000,0.12549,214.67,214.51,12.3001]
[1731516420209,0.12549,214.65,214.52,20.0]
[1731516420923,0.12549,214.63,214.45,12.1511]
[1731516421110,23.902374,214.63,214.45,12.1511]
[1731516421317,0.12549,214.63,214.46,0.12549]
[1731516421511,23.776884,214.69,214.46,0.12549]
[1731516422020,23.776884,214.69,214.47,20.0]
[1731516422316,32.4836,214.7,214.51,20.0]
[1731516422520,69.8376221,214.7,214.51,20.0]
[1731516422713,0.12549,214.65,214.45,12.1511]
[1731516423228,37.2540221,214.62,214.45,12.1511]
[1731516423406,0.12549,214.59,214.36,12.6109]
[1731516423609,23.902374,214.57,214.36,12.6109]
[1731516423924,23.776884,214.59,214.36,12.6109]
[1731516423925,23.902374,214.55,214.36,12.6109]
[1731516425703,23.902374,214.53,214.36,12.6109]
[1731516425907,23.902374,214.49,214.32,5.7148721]
[1731516426116,23.902374,214.49,214.3,12.2221]
[1731516426520,23.776884,214.5,214.3,12.2221]
[1731516427020,0.12549,214.47,214.3,12.2221]
[1731516427221,0.12549,214.45,214.3,12.2221]
[1731516427730,20.0,214.51,214.3,12.2221]
[1731516427917,23.776884,214.5,214.3,12.2221]
[1731516428111,23.776884,214.5,214.31,0.12549]
[1731516428307,0.12549,214.51,214.3,12.2221]
[1731516428522,0.12549,214.51,214.31,0.12549]
[1731516428717,23.776884,214.52,214.31,20.12549]
[1731516428926,30.5029,214.56,214.34,23.776884]
[1731516429125,30.5029,214.56,214.38,23.776884]
[1731516429333,33.2873,214.63,214.44,23.776884]
[1731516429512,33.2873,214.63,214.48,23.776884]
[1731516429830,33.2873,214.63,214.49,20.0]
[1731516430006,31.9468,214.71,214.51,20.0]
[1731516430331,31.9468,214.71,214.53,20.0]
[1731516430512,31.9468,214.78,214.58,36.710684]
[1731516430722,31.9468,214.78,214.59,20.0]
[1731516430941,31.9468,214.78,214.63,20.0]
[1731516431111,31.1042,214.85,214.65,20.0]
[1731516431311,31.1042,214.85,214.67,20.0]
[1731516431506,31.1042,214.85,214.68,0.12549]
[1731516431714,49.718148,214.93,214.71,20.0]
[1731516432041,31.1042,214.93,214.73,20.0]
[1731516432422,31.1042,214.93,214.75,20.0]
[1731516432627,31.1042,214.93,214.77,20.0]
[1731516433126,31.1042,214.93,214.76,20.0]
[1731516433507,31.1042,214.93,214.75,12.095]
[1731516433508,0.12549,214.9,214.75,12.095]
[1731516433713,0.12549,214.88,214.68,32.095]
[1731516434332,0.12549,214.89,214.68,32.095]
[1731516434831,20.12549,214.87,214.68,32.095]
[1731516435016,0.12549,214.83,214.68,32.095]
[1731516435429,0.12549,214.81,214.68,12.095]
[1731516436113,20.12549,214.81,214.68,12.095]
[1731516436312,0.12549,214.79,214.61,12.5214]
[1731516437525,0.12549,214.77,214.61,12.5214]
[1731516438924,0.12549,214.77,214.62,20.0]
[1731516439615,23.902374,214.79,214.62,20.0]
[1731516440035,37.2540221,214.88,214.64,20.0]
[1731516440333,37.2540221,214.88,214.66,20.0]
[1731516440517,0.12549,214.87,214.66,20.0]
[1731516440824,37.2540221,214.88,214.66,20.0]
[1731516441028,37.2540221,214.9,214.66,20.0]
[1731516441226,0.12549,214.89,214.66,20.0]
[1731516441430,23.902374,214.89,214.66,20.0]
[1731516441760,0.12549,214.89,214.66,20.0]